fUSD/lending_fUSD_20240429
["ID","MTS","AMOUNT","RATE_DAILY","PERIOD"]
[324839876,1714368927122,385.26,9.031e-05,2]
[324839878,1714368984123,155.0,9.031e-05,2]
[324839879,1714368984600,1180.09007817,9.031e-05,2]
[324839880,1714368984626,4000.0,9.031e-05,2]
[324839881,1714368984649,4000.0,9.031e-05,2]
[324839882,1714368984672,172280.70690266,9.031e-05,2]
[324839883,1714368984698,369.21629921,9.031e-05,2]
[324839884,1714368984722,4000.0,9.031e-05,2]
[324839885,1714368984746,4000.0,9.031e-05,2]
[324839886,1714368984768,4000.0,9.031e-05,2]
[324839887,1714368984790,4000.0,9.031e-05,2]
[324839888,1714368984813,4000.0,9.031e-05,2]
[324839889,1714368984835,4000.0,9.031e-05,2]
[324839891,1714369045247,-4000.0,9.031e-05,2]
[324839892,1714369045863,-4000.0,9.031e-05,2]
[324839893,1714369046477,-4000.0,9.031e-05,2]
[324839894,1714369047320,-4000.0,9.031e-05,2]
[324839895,1714369047964,-4000.0,9.031e-05,2]
[324839896,1714369048529,-50000.0,9.031e-05,2]
[324839897,1714369048977,-4000.0,9.031e-05,2]
[324839898,1714369049571,-4000.0,9.031e-05,2]
[324839899,1714369050161,-4000.0,9.031e-05,2]
[324839900,1714369050810,-4000.0,9.031e-05,2]
[324839901,1714369051420,-4000.0,9.031e-05,2]
[324839902,1714369065391,-127280.0,9.031e-05,2]
[324839903,1714369154316,-781.56932615,8.594e-05,2]
[324839904,1714369154337,-533.44494604,8.594e-05,2]
[324839905,1714369154356,-155.0,8.595e-05,2]
[324839906,1714369154376,-180.06,8.596e-05,2]
[324839907,1714369176630,-123421.50839501,9.031e-05,2]
[324839908,1714369176649,-155.0,9.031e-05,2]
[324839909,1714369176668,-155.24473957,9.031e-05,2]
[324839910,1714369187842,180.21241663,9.031e-05,2]
[324839911,1714369194978,67437.9601766,9.031e-05,2]
[324839913,1714369250589,-422.9541034,8.128e-05,2]
[324839914,1714369250611,-155.0,9.027e-05,2]
[324839915,1714369250632,-684.59558669,9.028e-05,2]
[324839916,1714369250653,-2737.45030991,9.028e-05,2]
[324839917,1714369251715,-4000.0,9.028e-05,2]
[324839918,1714369252675,-608.33063978,9.028e-05,2]
[324839919,1714369252695,-2356.43931281,9.029e-05,2]
[324839920,1714369252717,-155.0,9.029e-05,2]
[324839921,1714369252738,-268.33424577,9.029e-05,2]
[324839922,1714369252759,-167.43493362,9.029e-05,2]
[324839923,1714369252779,-155.12509853,9.029e-05,2]
[324839924,1714369252799,-236.62812511,9.029e-05,2]
[324839925,1714369252820,-52.70764438,9.03e-05,2]
[324839926,1714369253848,-1285.25410726,9.03e-05,2]
[324839927,1714369253871,-310.1296671,9.03e-05,2]
[324839928,1714369253892,-216.18183944,9.03e-05,2]
[324839929,1714369262733,684.59558669,9.03e-05,2]
[324839930,1714369264167,422.9541034,8.128e-05,2]
[324839931,1714369264937,1080.88469611,9.03e-05,2]
[324839932,1714369264958,2836.55306488,9.03e-05,2]
[324839933,1714369266526,216.55714314,9.03e-05,2]
[324839934,1714369279947,422.9541034,8.128e-05,2]
[324839935,1714369280967,523.93568858,7.225e-05,2]
[324839936,1714369280989,127.31363459,7.225e-05,2]
[324839937,1714369297957,422.9541034,8.128e-05,2]
[324839938,1714369315483,3449.73226201,8.128e-05,2]
[324839939,1714369315503,4000.0,8.128e-05,2]
[324839940,1714369315524,4000.0,8.128e-05,2]
[324839941,1714369315546,4000.0,8.128e-05,2]
[324839944,1714369575214,-407.19761892,7.304e-05,2]
[324839945,1714369575438,-684.59558669,7.305e-05,2]
[324839946,1714369575458,-872.18237995,7.305e-05,2]
[324839947,1714369575478,-1507.08911222,7.308e-05,2]
[324839948,1714369577054,155.0,7.303e-05,2]
[324839949,1714369612968,-273.7822349,7.315e-05,2]
[324840004,1714369654093,943.66867027,7.315e-05,2]
[324840005,1714369670170,150.0,7.315e-05,2]
[324840006,1714369670193,150.0,7.315e-05,2]
[324840007,1714369670213,150.0,7.315e-05,2]
[324840008,1714369670236,150.0,7.315e-05,2]
[324840009,1714369670256,150.0,7.315e-05,2]
[324840010,1714369670277,179.49136508,7.315e-05,2]
[324840011,1714369670296,15.01367929,7.315e-05,2]
[324840012,1714369673647,-150.0,7.999e-05,2]
[324840013,1714369674244,-150.0,7.999e-05,2]
[324840014,1714369684148,150.0,7.315e-05,2]
[324840015,1714369684167,187141.47071776,7.315e-05,2]
[324840018,1714369832863,-623.1225,7.307e-05,2]
[324840019,1714369832882,-158.44682615,7.307e-05,2]
[324840020,1714369832891,-235.25746565,7.308e-05,2]
[324840021,1714369832903,-271.95678584,7.308e-05,2]
[324840022,1714369832914,-177.3813352,7.308e-05,2]
[324840023,1714369832924,-197.8499739,7.308e-05,2]
[324840024,1714369832958,-574.24397282,7.308e-05,2]
[324840025,1714369832967,-155.0,7.308e-05,2]
[324840026,1714369832976,-363.99323521,7.309e-05,2]
[324840027,1714369832985,-533.44494604,7.31e-05,2]
[324840040,1714369833192,-155.0,7.314e-05,2]
[324840042,1714369833203,-67144.48346839,7.315e-05,2]
[324840044,1714369833216,-53237.69665037,7.315e-05,2]
[324840046,1714369833230,-586.85226721,7.315e-05,2]
[324840049,1714369833241,-11640.5445085,7.315e-05,2]
[324840106,1714369833778,-571.01966468,7.315e-05,2]
[324840209,1714369837719,-7553.02806621,7.315e-05,2]
[324840211,1714369837732,-218506.42633193,7.315e-05,2]
[324840212,1714369837741,-20182.90917099,7.315e-05,2]
[324840213,1714369837750,-155.24473957,7.315e-05,2]
[324840214,1714369837759,-155.0,7.315e-05,2]
[324840215,1714369837768,-150.0,7.315e-05,2]
[324840216,1714369837777,-150.0,7.315e-05,2]
[324840217,1714369837786,-150.0,7.315e-05,2]
[324840218,1714369837795,-150.0,7.315e-05,2]
[324840219,1714369837805,-150.0,7.315e-05,2]
[324840220,1714369837814,-150.0,7.315e-05,2]
[324840221,1714369837823,-150.0,7.315e-05,2]
[324840222,1714369837832,-150.0,7.315e-05,2]
[324840223,1714369837841,-156.80618396,7.315e-05,2]
[324840224,1714369837851,-540.99480086,8e-05,2]
[324840225,1714369837860,-150.0,8.11e-05,2]
[324840226,1714369837869,-194.84959874,8.126e-05,2]
[324840227,1714369837878,-236.65157251,8.126e-05,2]
[324840228,1714369837889,-150.0,8.126e-05,2]
[324840229,1714369837898,-150.0,8.126e-05,2]
[324840230,1714369837907,-35267.57312085,8.127e-05,2]
[324840231,1714369837917,-1061.98736234,8.127e-05,2]
[324840232,1714369837926,-451.85,8.219e-05,2]
[324840233,1714369837935,-171.26,8.219e-05,2]
[324840234,1714369837945,-165.31,8.751e-05,2]
[324840235,1714369837954,-1852.42,8.813e-05,2]
[324840236,1714369837963,-250.0,8.813e-05,2]
[324840237,1714369837972,-265.87,8.836e-05,2]
[324840238,1714369837981,-1821.79,8.873e-05,2]
[324840239,1714369837991,-750.01,8.904e-05,2]
[324840240,1714369838000,-500.0,8.908e-05,2]
[324840241,1714369838009,-900.79,9.197e-05,2]
[324840242,1714369838019,-398.49,9.198e-05,2]
[324840243,1714369838028,-4796.13,9.21e-05,2]
[324840244,1714369838037,-305.41,9.566e-05,2]
[324840245,1714369838046,-305.41,9.592e-05,2]
[324840246,1714369838055,-305.41,9.618e-05,2]
[324840247,1714369838065,-305.41,9.644e-05,2]
[324840248,1714369838074,-305.41,9.671e-05,2]
[324840249,1714369838084,-23900.0,9.692e-05,2]
[324840250,1714369838093,-305.41,9.697e-05,2]
[324840251,1714369838102,-305.41,9.723e-05,2]
[324840252,1714369838111,-305.41,9.749e-05,2]
[324840253,1714369838121,-305.41,9.776e-05,2]
[324840255,1714369838130,-305.41,9.802e-05,2]
[324840257,1714369838139,-305.41,9.828e-05,2]
[324840259,1714369838147,-242.21,9.845e-05,2]
[324840261,1714369838156,-305.41,9.854e-05,2]
[324840262,1714369838165,-305.41,9.881e-05,2]
[324840264,1714369838174,-305.41,9.907e-05,2]
[324840267,1714369838189,-305.41,9.933e-05,2]
[324840268,1714369838199,-154.88,9.934e-05,2]
[324840270,1714369838208,-265.87,9.941e-05,2]
[324840272,1714369838217,-154.88,9.942e-05,2]
[324840273,1714369838229,-154.88,9.95e-05,2]
[324840274,1714369838238,-154.88,9.959e-05,2]
[324840275,1714369838247,-305.41,9.959e-05,2]
[324840276,1714369838258,-154.88,9.967e-05,2]
[324840277,1714369838276,-154.88,9.975e-05,2]
[324840278,1714369838288,-154.88,9.984e-05,2]
[324840279,1714369838297,-305.41,9.986e-05,2]
[324840280,1714369838307,-872.17476359,0.0001,7]
[324840281,1714369838316,-427.4264081,0.0001,2]
[324840282,1714369838326,-787.64873451,0.0001,2]
[324840283,1714369838335,-208.00772945,0.0001,2]
[324840284,1714369838345,-305.41,0.00010012,2]
[324840285,1714369838354,-305.41,0.00010038,2]
[324840286,1714369838364,-305.41,0.00010064,2]
[324840287,1714369838374,-451.85,0.00010413,2]
[324840288,1714369838383,-200.0,0.00010785,2]
[324840289,1714369838392,-156.54145916,0.00010834,2]
[324840290,1714369838402,-3440.93694127,0.00010835,2]
[324840291,1714369838411,-310.68133478,0.00010836,2]
[324840292,1714369838421,-155.0,0.00010836,2]
[324840293,1714369838431,-897.95083425,0.00010836,2]
[324840294,1714369838440,-268.23180805,0.00010837,2]
[324840295,1714369838450,-505.62699539,0.00010958,2]
[324840296,1714369838460,-500.0,0.00010958,2]
[324840297,1714369838470,-500.0,0.00010958,2]
[324840298,1714369838479,-317.92425123,0.00010958,2]
[324840299,1714369838489,-500.0,0.00010958,2]
[324840300,1714369838498,-500.0,0.00010958,2]
[324840301,1714369838508,-503.88601471,0.00010958,2]
[324840302,1714369838517,-503.45376376,0.00010958,2]
[324840303,1714369838527,-500.0,0.00010958,2]
[324840304,1714369838536,-500.0,0.00010958,2]
[324840305,1714369838546,-269.78466704,0.00010958,2]
[324840306,1714369838555,-500.0,0.00010958,2]
[324840307,1714369838565,-504.63570115,0.00010958,2]
[324840308,1714369838574,-500.0,0.00010958,2]
[324840309,1714369838583,-500.0,0.00010958,2]
[324840310,1714369838593,-500.0,0.00010958,2]
[324840311,1714369838603,-500.0,0.00010958,2]
[324840312,1714369838613,-501.98617715,0.00010958,2]
[324840313,1714369838622,-500.0,0.00010958,2]
[324840314,1714369838631,-500.0,0.00010958,2]
[324840315,1714369838641,-642.64,0.00010958,2]
[324840316,1714369838650,-500.0,0.00010958,2]
[324840317,1714369838660,-500.0,0.00010958,2]
[324840318,1714369838669,-500.0,0.00010958,2]
[324840319,1714369838678,-500.0,0.00010958,2]
[324840320,1714369838688,-491.94224599,0.00010958,2]
[324840321,1714369838697,-500.0,0.00010958,2]
[324840322,1714369838706,-500.0,0.00010958,2]
[324840323,1714369838715,-500.0,0.00010958,2]
[324840324,1714369838724,-500.0,0.00010958,2]
[324840325,1714369838734,-500.0,0.00010958,2]
[324840326,1714369838744,-500.0,0.00010958,2]
[324840327,1714369838754,-500.0,0.00010958,2]
[324840328,1714369838765,-500.0,0.00010958,2]
[324840329,1714369838774,-509.65269445,0.00010958,2]
[324840330,1714369838783,-502.37371914,0.00010958,2]
[324840331,1714369838792,-500.0,0.00010958,2]
[324840332,1714369838802,-500.0,0.00010958,2]
[324840333,1714369838811,-500.0,0.00010958,2]
[324840334,1714369838820,-500.0,0.00010958,2]
[324840335,1714369838829,-500.0,0.00010958,2]
[324840336,1714369838839,-500.0,0.00010958,2]
[324840337,1714369838848,-500.0,0.00010958,2]
[324840338,1714369838858,-500.0,0.00010958,2]
[324840339,1714369838868,-500.0,0.00010958,2]
[324840340,1714369838878,-500.0,0.00010958,2]
[324840341,1714369838891,-500.0,0.00010958,2]
[324840342,1714369838902,-500.0,0.00010958,2]
[324840343,1714369838912,-500.0,0.00010958,2]
[324840344,1714369838921,-500.0,0.00010958,2]
[324840345,1714369838931,-500.0,0.00010958,2]
[324840346,1714369838940,-500.0,0.00010958,2]
[324840347,1714369838950,-500.0,0.00010958,2]
[324840348,1714369838959,-504.21582737,0.00010958,2]
[324840349,1714369838968,-502.25514111,0.00010958,2]
[324840350,1714369838978,-500.0,0.00010958,2]
[324840351,1714369838989,-500.0,0.00010958,2]
[324840352,1714369838998,-500.0,0.00010958,2]
[324840353,1714369839010,-500.0,0.00010958,2]
[324840354,1714369839020,-500.0,0.00010958,2]
[324840355,1714369839029,-500.0,0.00010958,2]
[324840356,1714369839039,-500.0,0.00010958,2]
[324840357,1714369839049,-500.0,0.00010958,2]
[324840358,1714369839059,-501.72652631,0.00010958,2]
[324840359,1714369839068,-500.0,0.00010958,2]
[324840360,1714369839078,-500.0,0.00010958,2]
[324840361,1714369839088,-500.0,0.00010958,2]
[324840362,1714369839097,-500.0,0.00010958,2]
[324840363,1714369839107,-500.0,0.00010958,2]
[324840364,1714369839117,-502.91808336,0.00010958,2]
[324840365,1714369839127,-500.0,0.00010958,2]
[324840366,1714369839137,-500.0,0.00010958,2]
[324840367,1714369839148,-500.0,0.00010958,2]
[324840368,1714369839158,-500.0,0.00010958,2]
[324840369,1714369839167,-500.0,0.00010958,2]
[324840370,1714369839177,-500.0,0.00010958,2]
[324840371,1714369839190,-500.0,0.00010958,2]
[324840372,1714369839200,-500.0,0.00010958,2]
[324840373,1714369839210,-500.0,0.00010958,2]
[324840374,1714369839219,-500.0,0.00010958,2]
[324840375,1714369839230,-500.0,0.00010958,2]
[324840376,1714369839240,-500.0,0.00010958,2]
[324840377,1714369839250,-500.0,0.00010958,2]
[324840378,1714369839262,-500.0,0.00010958,2]
[324840379,1714369839272,-500.0,0.00010958,2]
[324840380,1714369839282,-500.0,0.00010958,2]
[324840381,1714369839292,-500.0,0.00010958,2]
[324840382,1714369839301,-500.0,0.00010958,2]
[324840383,1714369839311,-500.0,0.00010958,2]
[324840384,1714369839321,-500.0,0.00010958,2]
[324840385,1714369839330,-500.0,0.00010958,2]
[324840386,1714369839341,-500.0,0.00010958,2]
[324840387,1714369839351,-500.0,0.00010958,2]
[324840388,1714369839363,-500.0,0.00010958,2]
[324840389,1714369839373,-500.0,0.00010958,2]
[324840390,1714369839383,-500.0,0.00010958,2]
[324840391,1714369839392,-370.0,0.00010958,2]
[324840392,1714369839402,-500.0,0.00010958,2]
[324840393,1714369839411,-500.0,0.00010958,2]
[324840394,1714369839421,-500.0,0.00010958,2]
[324840395,1714369839431,-500.0,0.00010958,2]
[324840396,1714369839441,-500.0,0.00010958,2]
[324840397,1714369839451,-503.38725959,0.00010958,2]
[324840398,1714369839460,-500.0,0.00010958,2]
[324840399,1714369839470,-629.87,0.00010958,2]
[324840400,1714369839480,-500.0,0.00010958,2]
[324840401,1714369839489,-500.0,0.00010958,2]
[324840402,1714369839499,-504.24134081,0.00010958,2]
[324840403,1714369839508,-500.0,0.00010958,2]
[324840404,1714369839517,-2212.09,0.00010958,2]
[324840405,1714369839527,-164.8547046,0.00010958,2]
[324840406,1714369839536,-506.1482654,0.00010958,2]
[324840407,1714369839545,-150.0,0.00010958,2]
[324840408,1714369839555,-500.0,0.00010958,2]
[324840409,1714369839564,-500.0,0.00010958,2]
[324840410,1714369839573,-560.18,0.00010958,2]
[324840411,1714369839583,-500.0,0.00010958,2]
[324840412,1714369839592,-500.0,0.00010958,2]
[324840413,1714369839601,-504.44582311,0.00010958,2]
[324840414,1714369839611,-500.0,0.00010958,2]
[324840415,1714369839621,-500.0,0.00010958,2]
[324840416,1714369839630,-500.0,0.00010958,2]
[324840417,1714369839640,-500.0,0.00010958,2]
[324840418,1714369839649,-500.0,0.00010958,2]
[324840419,1714369839658,-500.0,0.00010958,2]
[324840420,1714369839667,-500.0,0.00010958,2]
[324840421,1714369839676,-500.0,0.00010958,2]
[324840422,1714369839686,-500.0,0.00010958,2]
[324840423,1714369839695,-500.0,0.00010958,2]
[324840424,1714369839704,-500.0,0.00010958,2]
[324840425,1714369839714,-500.0,0.00010958,2]
[324840426,1714369839723,-500.0,0.00010958,2]
[324840427,1714369839732,-500.0,0.00010958,2]
[324840428,1714369839741,-500.0,0.00010958,2]
[324840429,1714369839750,-500.0,0.00010958,2]
[324840430,1714369839760,-500.0,0.00010958,2]
[324840431,1714369839769,-546.96,0.00010958,2]
[324840432,1714369839988,-500.0,0.00010958,2]
[324840433,1714369839998,-500.0,0.00010958,2]
[324840434,1714369840008,-500.0,0.00010958,2]
[324840435,1714369840017,-500.0,0.00010958,2]
[324840436,1714369840026,-500.0,0.00010958,2]
[324840437,1714369840036,-500.0,0.00010958,2]
[324840438,1714369840045,-500.0,0.00010958,2]
[324840439,1714369840054,-500.0,0.00010958,2]
[324840440,1714369840063,-500.0,0.00010958,2]
[324840441,1714369840072,-500.0,0.00010958,2]
[324840442,1714369840082,-500.0,0.00010958,2]
[324840443,1714369840091,-500.0,0.00010958,2]
[324840444,1714369840100,-500.0,0.00010958,2]
[324840445,1714369840109,-500.0,0.00010958,2]
[324840446,1714369840118,-516.14432197,0.00010958,2]
[324840447,1714369840128,-500.0,0.00010958,2]
[324840448,1714369840137,-500.0,0.00010958,2]
[324840449,1714369840146,-497.84052819,0.00010958,2]
[324840450,1714369840155,-500.0,0.00010958,2]
[324840451,1714369840165,-500.0,0.00010958,2]
[324840452,1714369840175,-500.0,0.00010958,2]
[324840453,1714369840196,-1206.18,0.00010958,2]
[324840454,1714369840209,-1241.44,0.00010958,2]
[324840455,1714369840219,-504.00336468,0.00010958,2]
[324840456,1714369840230,-500.0,0.00010958,2]
[324840457,1714369840241,-500.0,0.00010958,2]
[324840458,1714369840250,-500.0,0.00010958,2]
[324840459,1714369840262,-500.0,0.00010958,2]
[324840460,1714369840272,-500.0,0.00010958,2]
[324840461,1714369840282,-500.0,0.00010958,2]
[324840462,1714369840291,-500.0,0.00010958,2]
[324840463,1714369840301,-500.0,0.00010958,2]
[324840464,1714369840311,-500.0,0.00010958,2]
[324840465,1714369840321,-500.0,0.00010958,2]
[324840466,1714369840331,-500.0,0.00010958,2]
[324840467,1714369840340,-500.0,0.00010958,2]
[324840468,1714369840350,-1143.41,0.00010958,2]
[324840469,1714369840359,-500.0,0.00010958,2]
[324840470,1714369840369,-500.0,0.00010958,2]
[324840471,1714369840379,-508.50112775,0.00010958,2]
[324840472,1714369840388,-500.0,0.00010958,2]
[324840473,1714369840397,-500.0,0.00010958,2]
[324840474,1714369840407,-500.0,0.00010958,2]
[324840475,1714369840416,-500.0,0.00010958,2]
[324840476,1714369840426,-501.97284439,0.00010958,2]
[324840477,1714369840435,-500.0,0.00010958,2]
[324840478,1714369840445,-500.0,0.00010958,2]
[324840479,1714369840455,-500.0,0.00010958,2]
[324840480,1714369840464,-500.0,0.00010958,2]
[324840481,1714369840474,-500.0,0.00010958,2]
[324840482,1714369840483,-500.0,0.00010958,2]
[324840483,1714369840493,-354.03056168,0.00010958,2]
[324840484,1714369840504,-1668.88,0.00010958,2]
[324840485,1714369840514,-500.0,0.00010958,2]
[324840486,1714369840523,-500.0,0.00010958,2]
[324840487,1714369840532,-500.0,0.00010958,2]
[324840488,1714369840542,-654.9,0.00010958,2]
[324840489,1714369840552,-500.0,0.00010958,2]
[324840490,1714369840561,-500.0,0.00010958,2]
[324840491,1714369840571,-500.0,0.00010958,2]
[324840492,1714369840580,-500.0,0.00010958,2]
[324840493,1714369840589,-500.0,0.00010958,2]
[324840494,1714369840599,-500.0,0.00010958,2]
[324840495,1714369840609,-500.0,0.00010958,2]
[324840496,1714369840618,-1123.26,0.00010958,2]
[324840497,1714369840628,-500.0,0.00010958,2]
[324840498,1714369840637,-500.0,0.00010958,2]
[324840499,1714369840647,-405.20267192,0.00010958,2]
[324840500,1714369840656,-500.0,0.00010958,2]
[324840501,1714369840666,-500.0,0.00010958,2]
[324840502,1714369840675,-500.0,0.00010958,2]
[324840503,1714369840684,-500.0,0.00010958,2]
[324840504,1714369840693,-500.0,0.00010958,2]
[324840505,1714369840702,-691.21,0.00010958,2]
[324840506,1714369840711,-500.0,0.00010958,2]
[324840507,1714369840721,-500.0,0.00010958,2]
[324840508,1714369840730,-500.0,0.00010958,2]
[324840509,1714369840740,-500.0,0.00010958,2]
[324840510,1714369840749,-1148.03,0.00010958,2]
[324840511,1714369840759,-500.0,0.00010958,2]
[324840512,1714369840768,-500.0,0.00010958,2]
[324840513,1714369840777,-500.0,0.00010958,2]
[324840514,1714369840786,-500.0,0.00010958,2]
[324840515,1714369840795,-703.26,0.00010958,2]
[324840516,1714369840805,-500.0,0.00010958,2]
[324840517,1714369840814,-500.0,0.00010958,2]
[324840518,1714369840823,-500.0,0.00010958,2]
[324840519,1714369840832,-500.0,0.00010958,2]
[324840520,1714369840842,-865.39,0.00010958,2]
[324840521,1714369840851,-500.0,0.00010958,2]
[324840522,1714369840861,-500.0,0.00010958,2]
[324840523,1714369840870,-500.0,0.00010958,2]
[324840524,1714369840880,-500.0,0.00010958,2]
[324840525,1714369840889,-500.0,0.00010958,2]
[324840526,1714369840898,-1051.22,0.00010958,2]
[324840527,1714369840908,-500.0,0.00010958,2]
[324840528,1714369840917,-500.0,0.00010958,2]
[324840529,1714369840927,-766.76,0.00010958,2]
[324840530,1714369840936,-500.0,0.00010958,2]
[324840531,1714369840945,-500.0,0.00010958,2]
[324840532,1714369840954,-813.64,0.00010958,2]
[324840533,1714369840964,-820.07,0.00010958,2]
[324840534,1714369840973,-1514.85,0.00010958,2]
[324840535,1714369840983,-500.0,0.00010958,2]
[324840536,1714369840993,-500.0,0.00010958,2]
[324840537,1714369841002,-500.0,0.00010958,2]
[324840538,1714369841012,-500.0,0.00010958,2]
[324840539,1714369841021,-500.0,0.00010958,2]
[324840540,1714369841030,-500.0,0.00010958,2]
[324840541,1714369841040,-500.0,0.00010958,2]
[324840542,1714369841050,-500.0,0.00010958,2]
[324840543,1714369841059,-500.0,0.00010958,2]
[324840544,1714369841075,-500.0,0.00010958,2]
[324840545,1714369841084,-500.0,0.00010958,2]
[324840546,1714369841094,-500.0,0.00010958,2]
[324840547,1714369841103,-500.0,0.00010958,2]
[324840548,1714369841112,-500.0,0.00010958,2]
[324840549,1714369841122,-500.0,0.00010958,2]
[324840550,1714369841131,-500.0,0.00010958,2]
[324840551,1714369841141,-579.14,0.00010958,2]
[324840552,1714369841150,-500.0,0.00010958,2]
[324840553,1714369841159,-500.0,0.00010958,2]
[324840554,1714369841169,-502.59134683,0.00010958,2]
[324840555,1714369841179,-500.0,0.00010958,2]
[324840556,1714369841196,-3775.3,0.00010958,2]
[324840557,1714369841206,-1259.62,0.00010958,2]
[324840558,1714369841215,-500.0,0.00010958,2]
[324840559,1714369841224,-500.0,0.00010958,2]
[324840560,1714369841235,-503.55752259,0.00010958,2]
[324840561,1714369841244,-500.0,0.00010958,2]
[324840562,1714369841254,-508.22613151,0.00010958,2]
[324840563,1714369841265,-500.0,0.00010958,2]
[324840564,1714369841274,-500.0,0.00010958,2]
[324840565,1714369841284,-500.0,0.00010958,2]
[324840566,1714369841293,-500.0,0.00010958,2]
[324840567,1714369841303,-500.0,0.00010958,2]
[324840568,1714369841312,-500.0,0.00010958,2]
[324840570,1714369841321,-500.0,0.00010958,2]
[324840572,1714369841331,-500.0,0.00010958,2]
[324840574,1714369841340,-500.0,0.00010958,2]
[324840576,1714369841349,-500.0,0.00010958,2]
[324840578,1714369841359,-500.0,0.00010958,2]
[324840580,1714369841368,-500.0,0.00010958,2]
[324840582,1714369841378,-500.0,0.00010958,2]
[324840584,1714369841387,-500.0,0.00010958,2]
[324840586,1714369841397,-500.0,0.00010958,2]
[324840588,1714369841406,-500.0,0.00010958,2]
[324840590,1714369841415,-500.0,0.00010958,2]
[324840592,1714369841424,-500.0,0.00010958,2]
[324840594,1714369841433,-500.0,0.00010958,2]
[324840596,1714369841443,-500.0,0.00010958,2]
[324840598,1714369841451,-500.0,0.00010958,2]
[324840600,1714369841461,-500.0,0.00010958,2]
[324840602,1714369841470,-500.0,0.00010958,2]
[324840604,1714369841479,-500.0,0.00010958,2]
[324840605,1714369841490,-500.0,0.00010958,2]
[324840606,1714369841500,-500.0,0.00010958,2]
[324840607,1714369841509,-500.0,0.00010958,2]
[324840608,1714369841518,-500.0,0.00010958,2]
[324840609,1714369841527,-500.0,0.00010958,2]
[324840610,1714369841537,-4974.82,0.00010958,2]
[324840611,1714369841546,-500.0,0.00010958,2]
[324840612,1714369841555,-500.0,0.00010958,2]
[324840613,1714369841564,-500.0,0.00010958,2]
[324840614,1714369841574,-500.0,0.00010958,2]
[324840615,1714369841583,-1321.25,0.00010958,2]
[324840616,1714369841592,-500.0,0.00010958,2]
[324840617,1714369841601,-500.0,0.00010958,2]
[324840618,1714369841611,-150.0,0.00010959,2]
[324840619,1714369841620,-2000.0,0.00010959,3]
[324840620,1714369841629,-10000.0,0.00010959,2]
[324840621,1714369841640,-8138.88,0.00010959,2]
[324840622,1714369841649,-150.0,0.00010959,2]
[324840623,1714369841658,-151.0,0.00010959,2]
[324840624,1714369841667,-187.12,0.0001096,2]
[324840625,1714369841677,-187.12,0.0001096,2]
[324840626,1714369841687,-187.12,0.0001096,2]
[324840627,1714369841696,-757.79,0.00010975,2]
[324840628,1714369841705,-151.9,0.00010979,2]
[324840629,1714369841714,-1827.96,0.00010979,2]
[324840630,1714369841723,-336.9,0.00010987,2]
[324840631,1714369841733,-306.5,0.00010987,2]
[324840632,1714369841742,-155.0,0.00011,2]
[324840633,1714369841751,-749.93391595,0.00011,2]
[324840634,1714369841760,-1802.2597086,0.00011,2]
[324840635,1714369841769,-754.39708512,0.00011,2]
[324840636,1714369841778,-265.87,0.00011045,2]
[324840637,1714369841787,-171.26,0.00011046,2]
[324840638,1714369841796,-242.21,0.00011076,2]
[324840639,1714369841806,-500.0,0.00011231,2]